fUSD/lending_fUSD_20240611
["ID","MTS","AMOUNT","RATE_DAILY","PERIOD"]
[329118928,1718121052799,-3543.9,0.00022054,2]
[329118929,1718121052809,-4218.45,0.00022054,2]
[329118930,1718121052820,-500.0,0.00022054,2]
[329118931,1718121052832,-500.0,0.00022054,2]
[329118932,1718121052842,-1868.07,0.00022054,2]
[329118933,1718121052852,-1833.38,0.00022054,2]
[329118934,1718121052863,-1362.32,0.00022054,2]
[329118935,1718121052873,-385.18240727,0.00022054,2]
[329118936,1718121052883,-1851.86,0.00022054,2]
[329118937,1718121052894,-2995.23,0.00022054,2]
[329118938,1718121052904,-514.4759171,0.00022054,2]
[329118939,1718121052915,-500.0,0.00022054,2]
[329118940,1718121052925,-545.85052913,0.00022054,2]
[329118941,1718121052935,-500.0,0.00022054,2]
[329118942,1718121052945,-599.8,0.00022054,2]
[329118943,1718121053156,-216.55075823,0.00022054,2]
[329118944,1718121053169,-722.39,0.00022054,2]
[329118945,1718121053179,-962.25,0.00022054,2]
[329118946,1718121053195,-35008.18,0.00022054,2]
[329118947,1718121053205,-944.32,0.00022054,2]
[329118948,1718121053216,-2293.2,0.00022054,2]
[329118949,1718121053226,-4953.32,0.00022054,2]
[329118950,1718121053236,-2845.71,0.00022054,2]
[329118951,1718121053247,-2058.41,0.00022054,2]
[329118952,1718121053263,-500.0,0.00022054,2]
[329118953,1718121053274,-1068.44,0.00022054,2]
[329118954,1718121053288,-2442.04,0.00022054,2]
[329118955,1718121053309,-500.0,0.00022054,2]
[329118956,1718121053321,-500.0,0.00022054,2]
[329118957,1718121053334,-13980.85,0.00022054,2]
[329118958,1718121053345,-2078.7,0.00022054,2]
[329118959,1718121053356,-500.0,0.00022054,2]
[329118960,1718121053368,-500.0,0.00022054,2]
[329118961,1718121053379,-3025.4,0.00022054,2]
[329118962,1718121053390,-4871.75,0.00022054,2]
[329118963,1718121053401,-1973.38,0.00022054,2]
[329118964,1718121053412,-6777.8,0.00022054,2]
[329118965,1718121053425,-222.74133849,0.00022054,2]
[329118966,1718121053445,-518.3010196,0.00022054,2]
[329118967,1718121053458,-2080.57,0.00022054,2]
[329118968,1718121053472,-674.25,0.00022054,2]
[329118969,1718121053493,-500.0,0.00022054,2]
[329118970,1718121053508,-500.0,0.00022054,2]
[329118971,1718121053528,-500.0,0.00022054,2]
[329118972,1718121053543,-500.0,0.00022054,2]
[329118973,1718121053562,-4224.14,0.00022054,2]
[329118974,1718121053600,-1017.33,0.00022054,2]
[329118975,1718121053612,-2302.49,0.00022054,2]
[329118976,1718121053625,-26985.12,0.00022054,2]
[329118977,1718121053639,-500.0,0.00022054,2]
[329118978,1718121053651,-1254.66,0.00022054,2]
[329118979,1718121053668,-569.37716388,0.00022054,2]
[329118980,1718121053686,-500.0,0.00022054,2]
[329118981,1718121053703,-500.0,0.00022054,2]
[329118982,1718121053714,-967.07,0.00022054,2]
[329118983,1718121053727,-545.89,0.00022054,2]
[329118984,1718121053739,-500.0,0.00022054,2]
[329118985,1718121053756,-500.0,0.00022054,2]
[329118986,1718121053775,-518.43131758,0.00022054,2]
[329118987,1718121053792,-500.0,0.00022054,2]
[329118988,1718121053814,-5879.04,0.00022054,2]
[329118989,1718121053832,-2856.010381,0.00022054,7]
[329118990,1718121053851,-151.0,0.00022054,7]
[329118991,1718121053865,-4276.16,0.00022054,2]
[329118992,1718121053876,-8024.63,0.00022054,2]
[329118993,1718121053889,-500.0,0.00022054,2]
[329118994,1718121053902,-4792.55,0.00022054,2]
[329118995,1718121053913,-500.0,0.00022054,2]
[329118996,1718121053924,-500.0,0.00022054,2]
[329118997,1718121053936,-2856.010381,0.00022054,7]
[329118998,1718121053947,-170.845165,0.00022054,7]
[329118999,1718121053958,-1858.66,0.00022054,2]
[329119000,1718121053971,-500.0,0.00022054,2]
[329119001,1718121053984,-160.58687913,0.00022054,2]
[329119002,1718121053997,-500.0,0.00022054,2]
[329119003,1718121054010,-500.0,0.00022054,2]
[329119004,1718121054040,-1762.81,0.00022054,2]
[329119005,1718121054052,-151.0,0.00022054,7]
[329119006,1718121054065,-3760.72,0.00022054,2]
[329119007,1718121054076,-840.85,0.00022054,2]
[329119008,1718121054094,-1082.65,0.00022054,2]
[329119009,1718121054106,-178.966615,0.00022054,7]
[329119010,1718121054120,-1670.34580996,0.00022054,2]
[329119011,1718121054150,-827.40404683,0.00022054,2]
[329119012,1718121054165,-288.67014321,0.00022054,2]
[329119013,1718121054191,-2388.89,0.00022054,2]
[329119014,1718121054203,-500.0,0.00022054,2]
[329119015,1718121054214,-500.0,0.00022054,2]
[329119016,1718121054226,-7072.4385093,0.00022054,2]
[329119017,1718121054241,-867.1,0.00022054,2]
[329119018,1718121054256,-2652.17,0.00022054,2]
[329119019,1718121054271,-1035.12951585,0.00022054,2]
[329119020,1718121054287,-3069.59696732,0.00022054,2]
[329119021,1718121054301,-637.87500753,0.00022054,2]
[329119022,1718121054312,-1792.91,0.00022054,2]
[329119023,1718121054325,-178.966615,0.00022054,7]
[329119024,1718121054336,-500.0,0.00022054,2]
[329119025,1718121054347,-500.0,0.00022054,2]
[329119026,1718121054358,-1043.5060391,0.00022054,2]
[329119027,1718121054373,-394.2639609,0.00022054,2]
[329119028,1718121054385,-513.98589872,0.00022054,2]
[329119029,1718121054397,-3774.37,0.00022054,2]
[329119030,1718121054408,-1642.66,0.00022054,2]
[329119031,1718121054423,-500.0,0.00022054,2]
[329119032,1718121054434,-1875.57,0.00022054,2]
[329119033,1718121054445,-2119.15,0.00022054,2]
[329119034,1718121054456,-500.0,0.00022054,2]
[329119035,1718121054468,-158.068186,0.00022054,7]
[329119036,1718121054481,-1470.85,0.00022054,2]
[329119037,1718121054492,-500.0,0.00022054,2]
[329119038,1718121054504,-500.0,0.00022054,2]
[329119039,1718121054516,-5787.43,0.00022054,2]
[329119040,1718121054527,-2197.97,0.00022054,2]
[329119041,1718121054542,-565.68195588,0.00022054,2]
[329119042,1718121055067,-66.63804412,0.00022054,2]
[329119043,1718121055078,-500.0,0.00022054,2]
[329119044,1718121055089,-452.73250829,0.00022054,2]
[329119045,1718121055102,-304.99999994,0.00022054,2]
[329119046,1718121055115,-1318.42749177,0.00022054,2]
[329119047,1718121055126,-1074.22496404,0.00022054,2]
[329119048,1718121055140,-249.62503596,0.00022054,2]
[329119049,1718121055150,-507.2016213,0.00022054,2]
[329119050,1718121055161,-4129.62,0.00022054,2]
[329119051,1718121055172,-500.0,0.00022054,2]
[329119052,1718121055192,-500.0,0.00022054,2]
[329119053,1718121055203,-500.0,0.00022054,2]
[329119054,1718121055214,-500.0,0.00022054,2]
[329119055,1718121055224,-1959.94170138,0.00022054,2]
[329119056,1718121055239,-602.00829862,0.00022054,2]
[329119057,1718121055252,-796.45,0.00022054,2]
[329119058,1718121055264,-2477.92,0.00022054,2]
[329119059,1718121055275,-500.0,0.00022054,2]
[329119060,1718121055289,-508.71904701,0.00022054,2]
[329119061,1718121055300,-500.0,0.00022054,2]
[329119062,1718121055311,-7351.55,0.00022054,2]
[329119063,1718121055322,-500.0,0.00022054,2]
[329119064,1718121055333,-500.0,0.00022054,2]
[329119065,1718121055345,-500.0,0.00022054,2]
[329119066,1718121055356,-151.0,0.00022054,7]
[329119067,1718121055367,-335.816113,0.00022054,7]
[329119068,1718121055378,-500.0,0.00022054,2]
[329119069,1718121055390,-5222.97,0.00022054,2]
[329119070,1718121055401,-2001.84,0.00022054,2]
[329119071,1718121055412,-168.14914895,0.00022054,2]
[329119072,1718121055800,-219.48903513,0.00013989,2]
[329119073,1718121055810,-500.0,0.00021917,2]
[329119074,1718121055820,-150.0,0.00021918,2]
[329119075,1718121055904,-150.0,0.00022053,10]
[329119076,1718121055914,-4816.03085105,0.00022054,2]
[329119077,1718121055924,-4359.1,0.00022054,2]
[329119078,1718121055934,-694.83,0.00022054,2]
[329119079,1718121055944,-335.816113,0.00022054,7]
[329119080,1718121055954,-2146.89,0.00022054,2]
[329119081,1718121055964,-500.0,0.00022054,2]
[329119082,1718121055974,-3240.03,0.00022054,2]
[329119083,1718121055984,-5044.8,0.00022054,2]
[329119084,1718121055994,-2536.76,0.00022054,2]
[329119085,1718121056005,-780.26,0.00022054,2]
[329119086,1718121056016,-151.0,0.00022054,7]
[329119087,1718121056027,-652.77,0.00022054,2]
[329119088,1718121056041,-500.0,0.00022054,2]
[329119089,1718121056050,-151.0,0.00022054,7]
[329119090,1718121056061,-3882.23,0.00022054,2]
[329119091,1718121056071,-2829.8,0.00022054,2]
[329119092,1718121056080,-500.0,0.00022054,2]
[329119093,1718121056090,-3408.01,0.00022054,2]
[329119094,1718121056100,-3289.59,0.00022054,2]
[329119095,1718121056110,-2972.07,0.00022054,2]
[329119096,1718121056121,-500.0,0.00022054,2]
[329119097,1718121056131,-2213.16,0.00022054,2]
[329119098,1718121056142,-500.0,0.00022054,2]
[329119099,1718121056153,-192.88397116,0.00022054,2]
[329119100,1718121056166,-307.11602884,0.00022054,2]
[329119101,1718121056179,-729.06229301,0.00022054,2]
[329119102,1718121056191,-268.42770699,0.00022054,2]
[329119103,1718121056202,-151.0,0.00022054,7]
[329119104,1718121056212,-231.70512242,0.00022054,2]
[329119105,1718121056225,-268.29487758,0.00022054,2]
[329119106,1718121056236,-26.47161429,0.00022054,2]
[329119107,1718121056249,-1157.73838571,0.00022054,2]
[329119108,1718121056260,-728.11,0.00022054,2]
[329119109,1718121056272,-1786.1,0.00022054,2]
[329119110,1718121056287,-500.0,0.00022054,2]
[329119111,1718121056298,-4481.85,0.00022054,2]
[329119112,1718121056309,-2867.05,0.00022054,2]
[329119113,1718121056320,-500.0,0.00022054,2]
[329119114,1718121056330,-500.0,0.00022054,2]
[329119115,1718121056341,-500.0,0.00022054,2]
[329119116,1718121056352,-1740.88,0.00022054,2]
[329119117,1718121056363,-1520.29,0.00022054,2]
[329119118,1718121056375,-337.7601881,0.00022054,2]
[329119119,1718121056390,-162.2398119,0.00022054,2]
[329119120,1718121056401,-500.0,0.00022054,2]
[329119121,1718121056411,-500.0,0.00022054,2]
[329119122,1718121056423,-1608.59,0.00022054,2]
[329119123,1718121056435,-3084.0379585,0.00022054,2]
[329119124,1718121056449,-2698.1720415,0.00022054,2]
[329119125,1718121056459,-619.82,0.00022054,2]
[329119126,1718121056470,-8.5670785,0.00022054,2]
[329119127,1718121056483,-10136.9929215,0.00022054,2]
[329119128,1718121056494,-212.225751,0.00022054,7]
[329119129,1718121056505,-500.0,0.00022054,2]
[329119130,1718121056516,-639.58,0.00022054,2]
[329119131,1718121056527,-151.0,0.00022054,7]
[329119132,1718121056543,-1136.65,0.00022054,2]
[329119133,1718121056554,-212.225751,0.00022054,7]
[329119134,1718121056565,-279.23332853,0.00022054,2]
[329119135,1718121057096,-1880.56841885,0.00013999,2]
[329119136,1718121057108,-182.06859446,0.00021917,2]
[329119137,1718121057119,-1176.11,0.00021917,2]
[329119138,1718121057129,-500.0,0.00021917,2]
[329119139,1718121057140,-803.03667147,0.00022054,2]
[329119140,1718121057150,-500.0,0.00022054,2]
[329119141,1718121057160,-2448.21631522,0.00022054,2]
[329119142,1718121057174,-1302.57368478,0.00022054,2]
[329119143,1718121057184,-500.0,0.00022054,2]
[329119144,1718121057197,-500.0,0.00022054,2]
[329119145,1718121057207,-1176.11,0.00022054,2]
[329119146,1718121057218,-376.32078562,0.00022191,2]
[329119147,1718121057231,-349.21921438,0.00022191,2]
[329119148,1718121057241,-500.0,0.00022191,2]
[329119149,1718121057251,-1026.73,0.00022191,2]
[329119150,1718121057262,-1296.0,0.00022191,2]
[329119151,1718121057273,-1283.34484019,0.00022191,2]
[329119152,1718121057288,-122.41515981,0.00022191,2]
[329119153,1718121057298,-1034.47,0.00022191,2]
[329119154,1718121057308,-500.0,0.00022191,2]
[329119155,1718121057318,-1528.38,0.00022191,2]
[329119156,1718121057328,-500.0,0.00022191,2]
[329119157,1718121057339,-500.0,0.00022191,2]
[329119158,1718121057349,-2234.33,0.00022191,2]
[329119159,1718121057359,-674.43,0.00022191,2]
[329119160,1718121057369,-680.06,0.00022191,2]
[329119161,1718121057382,-500.0,0.00022191,2]
[329119162,1718121057392,-1394.55,0.00022191,2]
[329119163,1718121057402,-651.06,0.00022191,2]
[329119164,1718121057412,-500.0,0.00022191,2]
[329119165,1718121057423,-500.0,0.00022191,2]
[329119166,1718121057433,-500.0,0.00022191,2]
[329119167,1718121057444,-1499.43,0.00022191,2]
[329119168,1718121057454,-446.4576807,0.00022191,2]
[329119169,1718121057467,-255.2223193,0.00022191,2]
[329119170,1718121057478,-202.5527422,0.00022191,2]
[329119171,1718121057490,-297.4472578,0.00022191,2]
[329119172,1718121057501,-184.0877418,0.00022191,2]
[329119173,1718121057513,-1085.2622582,0.00022191,2]
[329119174,1718121057523,-425.16246069,0.00022191,2]
[329119175,1718121057539,-305.000005,0.00022191,2]
[329119176,1718121058203,-338.65988606,0.00015303,2]
[329119177,1718121058214,-522.69878769,0.00017259,2]
[329119178,1718121058227,-500.0,0.00021917,2]
[329119179,1718121058238,-3526.29,0.00021917,2]
[329119180,1718121058249,-406.54753431,0.00022191,2]
[329119181,1718121058261,-1197.33,0.00022191,2]
[329119182,1718121058271,-570.94,0.00022191,2]
[329119183,1718121058282,-1143.55,0.00022191,2]
[329119184,1718121058296,-1478.08,0.00022191,2]
[329119185,1718121058307,-1036.87,0.00022191,2]
[329119186,1718121058319,-526.16,0.00022191,2]
[329119187,1718121058329,-892.02,0.00022191,2]
[329119188,1718121058341,-500.0,0.00022191,2]
[329119189,1718121058352,-500.0,0.00022191,2]
[329119190,1718121058364,-1308.87,0.00022191,2]
[329119191,1718121058374,-1310.64,0.00022191,2]
[329119192,1718121058385,-1348.85,0.00022191,2]
[329119193,1718121058396,-500.0,0.00022191,2]
[329119194,1718121058406,-1504.67,0.00022191,2]
[329119195,1718121058416,-500.0,0.00022191,2]
[329119196,1718121058427,-500.0,0.00022191,2]
[329119197,1718121058437,-2154.24,0.00022191,2]
[329119198,1718121058448,-500.0,0.00022191,2]
[329119199,1718121058458,-1185.95,0.00022191,2]
[329119200,1718121058468,-1706.4,0.00022191,2]
[329119201,1718121058479,-1932.5,0.00022191,2]
[329119202,1718121058490,-915.04,0.00022191,2]
[329119203,1718121058500,-516.89,0.00022191,2]
[329119204,1718121058511,-1300.36,0.00022191,2]
[329119205,1718121058521,-619.59,0.00022191,2]
[329119206,1718121058532,-500.0,0.00022191,2]
[329119207,1718121058545,-643.88,0.00022191,2]
[329119208,1718121058556,-1636.96,0.00022191,2]
[329119209,1718121058566,-1765.01,0.00022191,2]
[329119210,1718121058577,-1109.58,0.00022191,2]
[329119211,1718121058587,-1356.13,0.00022191,2]
[329119212,1718121058598,-1024.24,0.00022191,2]
[329119213,1718121058609,-515.36718275,0.00022191,2]
[329119214,1718121058619,-500.0,0.00022191,2]
[329119215,1718121058630,-1089.58,0.00022191,2]
[329119216,1718121058640,-500.0,0.00022191,2]
[329119217,1718121058651,-1421.75,0.00022191,2]
[329119218,1718121058661,-508.58142527,0.00022191,2]
[329119219,1718121058671,-500.0,0.00022191,2]
[329119220,1718121058682,-500.0,0.00022191,2]
[329119221,1718121058693,-500.0,0.00022191,2]
[329119222,1718121058704,-500.0,0.00022191,2]
[329119223,1718121058715,-1275.35,0.00022191,2]
[329119224,1718121058725,-500.0,0.00022191,2]
[329119225,1718121058736,-780.35,0.00022191,2]
[329119226,1718121058748,-500.0,0.00022191,2]
[329119227,1718121058766,-1139.38,0.00022191,2]
[329119228,1718121058777,-259.19677745,0.00022191,2]
[329119229,1718121058792,-500.0,0.00022191,2]
[329119230,1718121058802,-500.0,0.00022191,2]
[329119231,1718121058812,-740.15,0.00022191,2]
[329119232,1718121058823,-500.0,0.00022191,2]
[329119233,1718121058833,-500.0,0.00022191,2]
[329119234,1718121058844,-500.0,0.00022191,2]
[329119235,1718121058854,-976.26,0.00022191,2]
[329119236,1718121058865,-500.0,0.00022191,2]
[329119237,1718121058876,-1678.98,0.00022191,2]
[329119238,1718121058886,-500.0,0.00022191,2]
[329119239,1718121058897,-500.0,0.00022191,2]
[329119240,1718121058908,-500.0,0.00022191,2]
[329119241,1718121058918,-1370.42,0.00022191,2]
[329119242,1718121058929,-155.94700556,0.00022191,2]
[329119243,1718121058939,-500.0,0.00022191,2]
[329119244,1718121058950,-500.0,0.00022191,2]
[329119245,1718121058960,-1887.13,0.00022191,2]
[329119246,1718121058971,-368.71440037,0.00022191,2]
[329119247,1718121058981,-500.0,0.00022191,2]
[329119248,1718121058992,-500.0,0.00022191,2]
[329119249,1718121059002,-500.0,0.00022191,2]
[329119250,1718121059013,-500.0,0.00022191,2]
[329119251,1718121059024,-500.0,0.00022191,2]
[329119252,1718121059037,-500.0,0.00022191,2]
[329119253,1718121059049,-500.0,0.00022191,2]
[329119254,1718121059060,-3494.91,0.00022191,2]
[329119255,1718121059071,-500.0,0.00022191,2]
[329119256,1718121059081,-500.0,0.00022191,2]
[329119257,1718121059092,-500.0,0.00022191,2]
[329119258,1718121059102,-500.0,0.00022191,2]
[329119259,1718121059113,-500.0,0.00022191,2]
[329119260,1718121059124,-520.98,0.00022191,2]
[329119261,1718121059136,-551.35,0.00022191,2]
[329119262,1718121059147,-500.0,0.00022191,2]
[329119263,1718121059158,-500.0,0.00022191,2]
[329119264,1718121059169,-640.4,0.00022191,2]
[329119265,1718121059180,-146.25700054,0.00022191,2]
[329119266,1718121059198,-543.7700757,0.00022191,2]
[329119267,1718121059211,-4528.47292376,0.00022191,2]
[329119268,1718121059223,-500.0,0.00022191,2]
[329119269,1718121059233,-2089.15,0.00022191,2]
[329119270,1718121059244,-529.17,0.00022191,2]
[329119271,1718121059255,-500.0,0.00022191,2]
[329119272,1718121059267,-5477.38,0.00022191,2]
[329119273,1718121059278,-500.0,0.00022191,2]
[329119274,1718121059293,-500.0,0.00022191,2]
[329119275,1718121059303,-775.07,0.00022191,2]
[329119276,1718121059313,-4956.98,0.00022191,2]
[329119277,1718121059324,-500.0,0.00022191,2]
[329119278,1718121059334,-1014.15337533,0.00022191,2]
[329119279,1718121059347,-797.22,0.00022191,2]
[329119280,1718121059359,-300.69557133,0.00022191,2]
[329119281,1718121059372,-1189.18799967,0.00022191,2]
[329119282,1718121059384,-322.256011,0.00022191,2]
[329119283,1718121059397,-947.86624015,0.00022191,2]
[329119284,1718121059411,-346.76974357,0.00022191,2]
[329119285,1718121059424,-588.89105895,0.00022191,2]
[329119286,1718121059435,-500.0,0.00022191,2]
[329119287,1718121059445,-500.0,0.00022191,2]
[329119288,1718121059461,-1870.10894103,0.00022191,2]
[329119289,1718121059474,-654.99105897,0.00022191,2]
[329119290,1718121059485,-880.82309555,0.00022191,2]
[329119291,1718121064635,150.5,0.0001958,15]
[329119294,1718121183771,150.5,0.00022455,15]
[329119341,1718121710488,1000.0,0.00028,120]
[329119342,1718121721141,1000.0,0.00028,120]
[329119348,1718122027142,-1277.45304415,0.00012752,2]
[329119349,1718122027166,-186.11592372,0.00012752,2]
[329119350,1718122027188,-268.79574159,0.00012753,2]
[329119351,1718122027211,-155.0,0.00012753,2]
[329119352,1718122027236,-300.0,0.00012753,2]
[329119353,1718122027259,-126.35964641,0.00012754,2]
[329119354,1718122029421,-28.64035359,0.00012754,2]
[329119355,1718122029447,-224.90591777,0.00012754,2]
[329119356,1718122036653,-990.704083,0.00012688,2]
[329119357,1718122036710,-1000.0,0.00012751,2]
[329119358,1718122036783,-77.05233689,0.00012754,2]
[329119359,1718122049159,-482.65638577,0.00012753,2]
[329119360,1718122049184,-30.10354587,0.00012753,2]
[329119366,1718122232141,-2351.166636,0.00012549,2]
[329119368,1718122232152,-334.29552451,0.00012549,2]
[329119369,1718122232162,-2000.25333624,0.0001255,2]
[329119371,1718122232173,-2073.67367214,0.00012551,2]
[329119372,1718122232184,-300.0,0.00012551,2]
[329119373,1718122232195,-522.69878769,0.00012552,2]
[329119374,1718122232212,-522.69878769,0.00012552,2]
[329119375,1718122232223,-522.69878769,0.00012552,2]
[329119376,1718122232234,-522.69878769,0.00012552,2]
[329119377,1718122232247,-358.86237888,0.00012553,2]
[329119378,1718122232259,-625.97046574,0.00012649,2]
[329119379,1718122232269,-567.0,0.00012651,2]
[329119380,1718122232279,-452.5528399,0.00012753,2]
[329119381,1718122232290,-155.0,0.00012753,2]
[329119382,1718122232300,-946.26599357,0.00012753,2]
[329119383,1718122232310,-948.04471135,0.00012753,2]
[329119384,1718122232321,-1067.92836055,0.00012819,2]
[329119385,1718122232332,-1867.91685744,0.0001282,2]
[329119386,1718122232344,-163.27789293,0.00013099,2]
[329119387,1718122232355,-203.85,0.00013099,2]
[329119388,1718122232366,-1362.92,0.00013099,2]
[329119389,1718122232377,-758.19,0.00013476,2]
[329119390,1718122232387,-190.0502,0.00013726,2]
[329119391,1718122232398,-13015.03600596,0.00014,2]
[329119392,1718122232409,-946.99769836,0.00014453,2]
[329119393,1718122232419,-316.52,0.00015867,2]
[329119394,1718122232429,-170.44387567,0.00017259,2]
[329119395,1718122232600,-6632.77059572,0.00017259,2]
[329119396,1718122232614,-2916.45882476,0.00017259,2]
[329119397,1718122232625,-152.22,0.00017444,2]
[329119398,1718122232636,-163.27789293,0.00017457,2]
[329119399,1718122232646,-250.0,0.00017583,2]
[329119400,1718122232657,-875.65443275,0.00017613,2]
[329119401,1718122232668,-17945.67488253,0.00017614,2]
[329119402,1718122237094,-564.5044,0.00017614,2]
[329119403,1718122237310,-5389.82071747,0.00017614,2]
[329119404,1718122237320,-1000.0,0.00017629,2]
[329119405,1718122237331,-250.0,0.00017734,2]
[329119406,1718122237341,-219.94,0.00017773,2]
[329119407,1718122237352,-39939.00121456,0.00017807,2]
[329119408,1718122237362,-169.78,0.00017876,2]
[329119409,1718122237373,-6266.727,0.00017876,2]
[329119410,1718122237383,-293.68,0.00018089,2]
[329119411,1718122237394,-316.52,0.00018131,2]
[329119412,1718122237405,-157.42,0.0001821,2]
[329119413,1718122237415,-186.11592372,0.0001945,2]
[329119414,1718122237428,-411.95127253,0.00019451,2]
[329119415,1718122237438,-155.49588908,0.0001958,2]
[329119416,1718122237449,-1000.0,0.00019832,2]
[329119417,1718122237460,-752.03196948,0.0001997,2]
[329119418,1718122237470,-155.0,0.0001997,2]
[329119419,1718122237481,-155.0,0.0002,2]
[329119420,1718122237493,-605.67882869,0.0002,2]
[329119421,1718122237504,-226.7178388,0.000201,2]
[329119422,1718122237515,-316.52,0.00020395,2]
[329119423,1718122237526,-167.24,0.00020413,2]
[329119425,1718122237537,-293.68,0.00020829,2]
[329119427,1718122237548,-1302.30583545,0.0002108,2]
[329119428,1718122237559,-324.40312278,0.00021301,2]
[329119429,1718122237570,-163.458983,0.0002137,2]
[329119430,1718122237581,-1029.041,0.00021566,2]
[329119431,1718122237592,-5156.0,0.00021566,2]
[329119432,1718122237605,-708.426,0.00021566,2]
[329119433,1718122237616,-1194.0,0.00021566,2]
[329119434,1718122237626,-38070.0,0.00021566,2]
[329119435,1718122237637,-253.45455834,0.00021696,2]
[329119436,1718122237650,-347.3351,0.00021717,2]
[329119437,1718122237660,-163.27789293,0.00021815,2]
[329119438,1718122237671,-6463.0961,0.00021817,2]
[329119439,1718122237682,-33179.3226,0.00021817,2]
[329119440,1718122237692,-1132.42839464,0.00021817,2]
[329119441,1718122237703,-271.59834936,0.00021817,2]
[329119442,1718122237714,-340.14714039,0.00021817,2]
[329119443,1718122237724,-929.43350868,0.00021817,2]
[329119444,1718122237735,-271.59834934,0.00021838,2]
[329119445,1718122237746,-271.59834934,0.00021859,2]
[329119446,1718122237757,-271.59834934,0.00021879,2]
[329119447,1718122237767,-271.59834934,0.000219,2]
[329119448,1718122237779,-333.86740679,0.00021907,2]
[329119449,1718122237790,-176.51048241,0.00021915,2]
[329119453,1718122237806,-792.34288822,0.00021915,2]
[329119457,1718122237820,-3063.71989598,0.00021915,2]
[329119459,1718122237831,-155.0,0.00021915,2]
[329119461,1718122237842,-156.25436202,0.00021915,2]
[329119463,1718122237852,-625.38036387,0.00021915,2]
[329119465,1718122237863,-155.0,0.00021915,2]
[329119466,1718122237873,-1779.11097085,0.00021915,2]
[329119467,1718122237883,-155.69611102,0.00021915,2]
[329119468,1718122237894,-264.16183897,0.00021915,2]
[329119469,1718122237905,-264.52157603,0.00021915,2]
[329119470,1718122237915,-275.46328575,0.00021915,2]
[329119471,1718122237925,-217.32072534,0.00021915,2]
[329119472,1718122237935,-155.0,0.00021915,2]
[329119473,1718122237945,-156.29575252,0.00021915,2]
[329119474,1718122237956,-157.68222462,0.00021915,2]
[329119475,1718122237966,-523.92588046,0.00021915,2]
[329119476,1718122237976,-183.08420725,0.00021915,2]
[329119478,1718122237987,-155.0,0.00021915,2]
[329119480,1718122237998,-156.52071995,0.00021915,2]
[329119482,1718122238008,-156.92140423,0.00021915,2]
[329119484,1718122238019,-199.51587108,0.00021915,2]
[329119486,1718122238030,-325.55682628,0.00021915,2]
[329119488,1718122238040,-210.78332715,0.00021915,2]
[329119490,1718122238051,-156.03888376,0.00021915,2]
[329119491,1718122238061,-305.1459001,0.00021915,2]
[329119494,1718122238072,-247.33904018,0.00021915,2]
[329119495,1718122238082,-277.38315109,0.00021915,2]
[329119497,1718122238092,-3344.25556679,0.00021915,2]
[329119499,1718122238103,-3016.07364784,0.00021915,2]
[329119500,1718122238115,-195.06967946,0.00021915,2]
[329119501,1718122238127,-233.7079612,0.00021915,2]
[329119502,1718122238138,-156.36923144,0.00021915,2]
[329119503,1718122238149,-241.34819951,0.00021915,2]
[329119504,1718122238159,-429.55422421,0.00021915,2]
[329119505,1718122238169,-400.60003504,0.00021915,2]
[329119506,1718122238179,-156.10148443,0.00021915,2]
[329119507,1718122238189,-295.92561526,0.00021915,2]
[329119508,1718122238210,-2060.62366659,0.00021915,2]
[329119509,1718122238222,-321.96055433,0.00021915,2]
[329119510,1718122238233,-645.72730004,0.00021915,2]